lending/lending_fUSD_20251107
["ID","MTS","AMOUNT","RATE_DAILY","PERIOD"]
[393350985,1762505440426,-905.0,0.00032842,2]
[393350986,1762505440435,-1273.0,0.00032842,2]
[393350987,1762505440444,-812.0,0.00032842,2]
[393350988,1762505440453,-6659.0,0.00032842,2]
[393350989,1762505440462,-1153.0,0.00032842,2]
[393350990,1762505440471,-2192.024,0.00032842,2]
[393350991,1762505440480,-6476.0,0.00032842,2]
[393350992,1762505440489,-559.0,0.00032842,2]
[393350993,1762505440498,-878.11499697,0.00032872,2]
[393350994,1762505440508,-500.0,0.00032877,7]
[393350995,1762505440517,-500.0,0.00032877,7]
[393350996,1762505440526,-500.0,0.00032877,7]
[393350997,1762505440535,-500.0,0.00032877,7]
[393350998,1762505440544,-500.0,0.00032877,7]
[393350999,1762505440553,-500.0,0.00032877,7]
[393351000,1762505440562,-250.72349105,0.00032877,7]
[393351001,1762505440571,-2000.0,0.00033,2]
[393351002,1762505440580,-1154.18732942,0.00033015,2]
[393351003,1762505440589,-214.6736032,0.00033038,2]
[393351004,1762505440598,-878.11499697,0.00033052,2]
[393351005,1762505440607,-1000.0,0.0003309,2]
[393351006,1762505440616,-214.6736032,0.0003334,2]
[393351007,1762505440625,-878.11499697,0.00033362,2]
[393351008,1762505440634,-500.0,0.00033452,2]
[393351010,1762505440643,-500.0,0.00033479,120]
[393351011,1762505440652,-500.0,0.00033479,7]
[393351012,1762505440661,-500.0,0.00033479,120]
[393351013,1762505440670,-500.0,0.00033479,30]
[393351014,1762505440679,-199.0,0.00033479,7]
[393351015,1762505440688,-477.99034883,0.0003348,3]
[393351016,1762505440697,-12649.0,0.0003348,3]
[393351017,1762505440706,-214.6736032,0.00033631,2]
[393351018,1762505440716,-878.11499697,0.00033649,2]
[393351019,1762505440725,-878.11499697,0.00033775,2]
[393351020,1762505440735,-214.6736032,0.0003382,2]
[393351021,1762505440744,-150.0,0.00033836,10]
[393351022,1762505440753,-500.0,0.00033836,2]
[393351023,1762505440762,-500.0,0.00033836,10]
[393351024,1762505440771,-150.0,0.00033836,10]
[393351025,1762505440780,-500.0,0.00033836,2]
[393351026,1762505440789,-353.39331687,0.000339,2]
[393351027,1762505440798,-500.0,0.00033951,7]
[393351028,1762505440807,-510.17653817,0.00033951,7]
[393351029,1762505440816,-500.0,0.00033951,7]
[393351030,1762505440825,-824.18199952,0.00033951,7]
[393351031,1762505440834,-500.0,0.00033951,7]
[393351032,1762505440843,-500.0,0.00033951,7]
[393351033,1762505440852,-500.0,0.00033951,7]
[393351034,1762505440861,-500.0,0.00033951,7]
[393351035,1762505440870,-500.0,0.00033951,7]
[393351036,1762505440879,-500.0,0.00033951,7]
[393351037,1762505440888,-500.0,0.00033951,7]
[393351038,1762505440897,-500.0,0.00033951,7]
[393351039,1762505440906,-500.0,0.00033951,7]
[393351040,1762505440915,-500.0,0.00033951,7]
[393351041,1762505440923,-500.0,0.00033951,7]
[393351042,1762505440933,-500.0,0.00033951,7]
[393351043,1762505440942,-500.0,0.00033951,7]
[393351044,1762505440951,-500.0,0.00033951,7]
[393351045,1762505440959,-500.0,0.00033951,7]
[393351046,1762505440968,-339.54139094,0.00033951,7]
[393351047,1762505440985,-160.45860906,0.00033951,7]
[393351048,1762505440996,-500.0,0.00033951,7]
[393351049,1762505441005,-532.76808339,0.00033951,7]
[393351050,1762505441015,-500.0,0.00033951,7]
[393351051,1762505441023,-500.0,0.00033951,7]
[393351052,1762505441034,-500.0,0.00033951,7]
[393351053,1762505441043,-500.0,0.00033951,7]
[393351054,1762505441052,-500.0,0.00033951,7]
[393351055,1762505441062,-500.0,0.00033951,7]
[393351056,1762505441071,-500.0,0.00033951,7]
[393351057,1762505441080,-500.0,0.00033951,7]
[393351058,1762505441088,-500.0,0.00033951,7]
[393351059,1762505441098,-500.0,0.00033951,7]
[393351060,1762505441106,-805.12204753,0.00033951,7]
[393351061,1762505441115,-500.0,0.00033951,7]
[393351062,1762505441124,-500.0,0.00033951,7]
[393351063,1762505441133,-500.0,0.00033951,7]
[393351064,1762505441142,-500.0,0.00033951,7]
[393351065,1762505441151,-500.0,0.00033951,7]
[393351066,1762505441160,-500.0,0.00033951,7]
[393351067,1762505441169,-500.0,0.00033951,7]
[393351068,1762505441179,-500.0,0.00033951,7]
[393351069,1762505441188,-500.0,0.00033951,7]
[393351070,1762505441197,-500.0,0.00033951,7]
[393351071,1762505441206,-500.0,0.00033951,7]
[393351072,1762505441216,-676.70640271,0.00033951,7]
[393351073,1762505441225,-660.81042361,0.00033951,7]
[393351074,1762505441234,-880.47213416,0.00033951,7]
[393351075,1762505441243,-500.0,0.00033973,2]
[393351076,1762505441253,-500.0,0.00033973,10]
[393351077,1762505441262,-150.0,0.00033973,10]
[393351078,1762505441271,-500.0,0.00033973,2]
[393351079,1762505441280,-24524.1144731,0.0003399,3]
[393351080,1762505441291,-1999.98,0.00034,2]
[393351081,1762505441301,-1999.99,0.00034,2]
[393351082,1762505441310,-1999.99,0.00034,2]
[393351083,1762505441319,-1999.99,0.00034,2]
[393351084,1762505441328,-2000.03,0.00034,2]
[393351085,1762505441337,-1877.68,0.00034,2]
[393351086,1762505441346,-2000.01,0.00034,2]
[393351087,1762505441513,-1999.99,0.00034,2]
[393351088,1762505441522,-2000.01,0.00034,2]
[393351089,1762505441532,-878.11499697,0.00034016,2]
[393351090,1762505441541,-199.0,0.00034027,8]
[393351091,1762505441550,-214.6736032,0.00034101,2]
[393351092,1762505441560,-500.0,0.0003411,2]
[393351093,1762505441569,-500.0,0.0003411,10]
[393351094,1762505441578,-150.0,0.0003411,10]
[393351095,1762505441587,-500.0,0.0003411,2]
[393351096,1762505441596,-1154.18732942,0.00034139,2]
[393351097,1762505441605,-300.0,0.00034177,2]
[393351098,1762505441614,-549.24,0.00034177,2]
[393351099,1762505441623,-549.24,0.00034177,2]
[393351100,1762505441631,-300.0,0.00034177,2]
[393351101,1762505441640,-150.0,0.00034177,2]
[393351102,1762505441650,-150.0,0.00034177,2]
[393351103,1762505441658,-150.0,0.00034177,2]
[393351104,1762505441667,-415.8,0.00034177,2]
[393351105,1762505441676,-415.8,0.00034177,2]
[393351106,1762505441685,-176.94,0.00034177,2]
[393351107,1762505441694,-176.94,0.00034177,2]
[393351108,1762505441703,-150.0,0.00034177,2]
[393351109,1762505441712,-300.0,0.00034177,2]
[393351110,1762505441722,-500.0,0.00034247,2]
[393351111,1762505441730,-500.0,0.00034247,10]
[393351112,1762505441739,-208.1083224,0.00034247,10]
[393351113,1762505441748,-500.0,0.00034247,2]
[393351114,1762505441757,-335.5,0.000343,2]
[393351115,1762505441766,-500.0,0.00034384,2]
[393351116,1762505441775,-500.0,0.00034384,10]
[393351117,1762505441784,-298.99369119,0.00034384,2]
[393351118,1762505441793,-878.11499697,0.00034403,2]
[393351119,1762505441802,-862.55463796,0.00034475,2]
[393351120,1762505441811,-214.6736032,0.00034498,2]
[393351121,1762505441820,-594.37088904,0.00034521,2]
[393351122,1762505441830,-500.0,0.00034521,10]
[393351123,1762505441839,-247.58792522,0.00034547,15]
[393351124,1762505441849,-5000.0,0.00034566,5]
[393351125,1762505441858,-199.0,0.00034575,9]
[393351126,1762505441867,-353.39331684,0.00034576,2]
[393351127,1762505441876,-6178.88635,0.0003462,2]
[393351128,1762505441885,-49048.2289462,0.00034646,3]
[393351129,1762505441894,-24524.1144731,0.00034647,3]
[393351130,1762505441903,-49048.2289462,0.00034656,3]
[393351131,1762505441912,-18845.8223167,0.00034656,3]
[393351132,1762505441921,-525.82294279,0.00034657,120]
[393351133,1762505441931,-500.0,0.00034658,10]
[393351134,1762505441940,-878.11499704,0.00034662,2]
[393351135,1762505441950,-151.0,0.00034663,14]
[393351136,1762505441959,-500.0,0.00034666,7]
[393351137,1762505441969,-500.0,0.00034666,30]
[393351138,1762505441978,-500.0,0.00034666,120]
[393351139,1762505441990,-245241.144731,0.00034666,3]
[393351140,1762505441999,-226149.8678,0.00034666,3]
[393351141,1762505442008,-150.07,0.00034666,2]
[393351142,1762505442018,-150.07,0.00034666,2]
[393351143,1762505442027,-151.0,0.00034673,14]
[393351144,1762505442035,-160.87,0.00034675,2]
[393351145,1762505442045,-158.25209266,0.00034675,7]
[393351146,1762505442054,-500.0,0.00034675,30]
[393351147,1762505442065,-500.0,0.00034675,30]
[393351148,1762505442074,-500.0,0.00034675,120]
[393351149,1762505442083,-500.0,0.00034675,120]
[393351150,1762505442092,-33266.2593,0.00034676,2]
[393351151,1762505442102,-7371.2255,0.00034676,2]
[393351152,1762505442111,-420000.0,0.00034676,2]
[393351153,1762505442120,-1000.0,0.00034676,120]
[393351154,1762505442128,-1000.0,0.00034676,2]
[393351155,1762505442137,-506.19973696,0.00034686,2]
[393351156,1762505442146,-162.21113265,0.00034686,2]
[393351157,1762505442155,-9991.1379,0.00034686,2]
[393351158,1762505442164,-200.0,0.00034693,10]
[393351159,1762505442174,-650.68,0.000347,14]
[393351160,1762505442185,-1009.0,0.000347,7]
[393351161,1762505442194,-214.6736046,0.00034701,2]
[393351162,1762505442204,-18845.8223167,0.00034765,3]
[393351163,1762505442213,-150.07,0.00034766,2]
[393351164,1762505442222,-150.07,0.00034766,2]
[393351165,1762505442232,-151.0,0.00034773,14]
[393351166,1762505442241,-6805.44644517,0.00034775,30]
[393351167,1762505442250,-999.0,0.00034775,120]
[393351168,1762505442259,-171668.801312,0.00034776,3]
[393351169,1762505442268,-207304.045483,0.00034776,3]
[393351170,1762505442277,-150.07,0.00034776,2]
[393351171,1762505442286,-150.07,0.00034776,2]
[393351172,1762505442295,-150.0,0.00034785,20]
[393351173,1762505442304,-500.0,0.00034785,30]
[393351174,1762505442314,-500.0,0.00034785,120]
[393351175,1762505442323,-500.0,0.00034785,120]
[393351176,1762505442332,-270883.8737882,0.00034786,2]
[393351177,1762505442345,-4062.08352272,0.00034786,2]
[393351184,1762505443459,-767.335403,0.00034786,2]
[393351185,1762505443565,-9829.10363456,0.00034786,2]
[393351208,1762505446436,-152.0,0.00034119,10]
[393351209,1762505446446,-359.21741462,0.00034786,2]
[393351210,1762505446487,-123375.7494791,0.00034786,2]
[393351211,1762505446496,-11557.9726978,0.00034786,2]
[393351212,1762505446505,-151.0,0.00034786,31]
[393351213,1762505446515,-151.0,0.00034786,31]
[393351214,1762505446524,-2127.502164,0.00034786,31]
[393351215,1762505446533,-2127.502164,0.00034786,31]
[393351216,1762505446543,-2127.502164,0.00034786,31]
[393351217,1762505446552,-2127.502164,0.00034786,31]
[393351218,1762505446561,-4244.1892842,0.00034786,2]
[393351219,1762505446571,-500.0,0.00034795,10]
[393351220,1762505446581,-152.0,0.0003485,11]
[393351221,1762505446591,-6178.88636,0.0003486,2]
[393351222,1762505446601,-1421.25133821,0.00034862,30]
[393351223,1762505446610,-1000.0,0.00034862,30]
[393351224,1762505446620,-1000.0,0.00034924,7]
[393351225,1762505446629,-500.0,0.00034932,10]
[393351226,1762505446639,-150.07,0.0003497,2]
[393351227,1762505446648,-503.15659393,0.00034973,5]
[393351228,1762505446658,-500.0,0.00034973,5]
[393351229,1762505446667,-6178.88636,0.00034973,2]
[393351230,1762505446677,-222.06504434,0.00034977,14]
[393351231,1762505446689,-75383.2892667,0.0003498,3]
[393351232,1762505446699,-130596.92343227,0.0003499,30]
[393351233,1762505446709,-477.99034883,0.0003499,30]
[393351234,1762505446718,-150.07,0.00034995,2]
[393351235,1762505446728,-169.04,0.00034999,2]
[393351236,1762505446737,-169.04,0.00034999,2]
[393351237,1762505446747,-169.08,0.00034999,2]
[393351238,1762505446756,-5163.45354317,0.00035,2]
[393351239,1762505446768,-3162.72758788,0.00035,15]
[393351240,1762505446779,-401.42820235,0.00035,2]
[393351241,1762505446793,-1219.70137002,0.00035,2]
[393351242,1762505446804,-150.0,0.00035,2]
[393351244,1762505446816,-1000.0,0.00035,7]
[393351246,1762505446826,-247.58792515,0.00035001,15]
[393351247,1762505446837,-500.0,0.00035004,120]
[393351248,1762505446848,-698.68,0.00035005,2]
[393351249,1762505446859,-1397.36,0.00035005,2]
[393351250,1762505446871,-1397.36,0.00035005,2]
[393351251,1762505446882,-1397.36,0.00035005,2]
[393351252,1762505446893,-477.21,0.00035005,2]
[393351253,1762505446905,-1397.36,0.00035005,2]
[393351254,1762505446916,-477.21,0.00035005,2]
[393351255,1762505446928,-477.21,0.00035005,2]
[393351256,1762505446941,-477.21,0.00035005,2]
[393351257,1762505446952,-477.21,0.00035005,2]
[393351258,1762505446964,-151.14,0.000351,7]
[393351259,1762505446975,-18845.8223167,0.000351,3]
[393351260,1762505446987,-6178.88636,0.0003511,2]
[393351261,1762505446999,-199.0,0.00035123,10]
[393351262,1762505447010,-181.12211468,0.00035149,14]
[393351263,1762505447023,-4840.0,0.00035167,2]
[393351264,1762505447036,-1000.0,0.00035198,7]
[393351265,1762505447048,-150.0,0.00035206,10]
[393351266,1762505447059,-353.39331684,0.00035252,2]
[393351267,1762505447072,-1154.18732942,0.00035262,2]
[393351268,1762505447083,-506.19973695,0.00035346,2]
[393351269,1762505447095,-6178.88636,0.0003536,2]
[393351270,1762505447107,-247.58792515,0.00035455,15]
[393351271,1762505447119,-1000.0,0.00035472,7]
[393351272,1762505447131,-650.68,0.000355,14]
[393351273,1762505447143,-1008.49713198,0.00035521,5]
[393351274,1762505447154,-150.0,0.00035534,2]
[393351275,1762505447167,-150.0,0.00035534,2]
[393351276,1762505447179,-152.0,0.00035581,12]
[393351277,1762505447192,-271.0,0.000356,7]
[393351278,1762505447204,-6178.88636,0.0003561,2]
[393351279,1762505447215,-6000.0,0.00035616,5]
[393351280,1762505447227,-4000.0,0.00035616,5]
[393351281,1762505447238,-1171.1,0.00035616,2]
[393351282,1762505447249,-151.0,0.00035616,31]
[393351283,1762505447261,-168.0,0.00035642,2]
[393351284,1762505447273,-199.0,0.00035671,11]
[393351285,1762505447284,-1004.0,0.000357,7]
[393351286,1762505447297,-179.47,0.00035827,2]
[393351287,1762505447308,-176.94,0.00035827,2]
[393351288,1762505447319,-176.94,0.00035827,2]
[393351289,1762505447331,-176.94,0.00035827,2]
[393351290,1762505447343,-607.0,0.00035842,2]
[393351291,1762505447354,-3424.0,0.00035842,2]
[393351292,1762505447364,-574.0,0.00035842,2]
[393351293,1762505447374,-1316.0,0.00035842,2]
[393351294,1762505447384,-1596.0,0.00035842,2]
[393351295,1762505447394,-820.0,0.00035842,2]
[393351296,1762505447405,-1273.0,0.00035842,2]
[393351297,1762505447418,-812.0,0.00035842,2]
[393351298,1762505447431,-6659.0,0.00035842,2]
[393351299,1762505447442,-1153.0,0.00035842,2]
[393351300,1762505447452,-2142.0,0.00035842,2]
[393351301,1762505447462,-6476.0,0.00035842,2]
[393351302,1762505447471,-559.0,0.00035842,2]
[393351303,1762505447481,-269.0,0.00035855,2]
[393351304,1762505447492,-272.862992,0.0003589,30]
[393351305,1762505447503,-249.62,0.000359,30]
[393351306,1762505447515,-247.58792515,0.00035908,15]
[393351307,1762505447527,-168.0,0.00035922,2]
[393351308,1762505447537,-353.39331684,0.00035928,2]
[393351309,1762505447547,-158.64,0.00035961,60]
[393351310,1762505447557,-151.0,0.0003598,31]
[393351311,1762505447567,-500.0,0.00035999,120]
[393351312,1762505447576,-500.0,0.00035999,120]
[393351313,1762505447587,-9920.0,0.00036,2]
[393351314,1762505447598,-112025.4358027,0.00036,2]
[393351315,1762505447608,-1280.1860622,0.00036,10]
[393351316,1762505447619,-126857.09626886,0.00036,2]
[393351317,1762505447643,-152.0,0.00033388,9]
[393351318,1762505447654,-104439.18477644,0.00036,2]
[393351319,1762505447664,-10703.14865581,0.00036,2]
[393351320,1762505447675,-15819.25264664,0.00036,120]
[393351321,1762505447688,-477.99034883,0.00036,120]
[393351322,1762505447698,-477.99034883,0.00036,30]
[393351323,1762505447709,-366.7771683,0.00036,10]
[393351324,1762505447719,-159.78598,0.00036,31]
[393351325,1762505447730,-161.113771,0.00036,30]
[393351326,1762505447740,-500.0,0.00036,5]
[393351327,1762505447751,-2127.502164,0.00036,31]
[393351328,1762505447761,-2127.502164,0.00036,31]
[393351329,1762505447772,-2127.502164,0.00036,31]
[393351330,1762505447782,-2127.502164,0.00036,31]
[393351331,1762505447792,-506.19973695,0.00036006,2]
[393351332,1762505447802,-158.64,0.00036061,60]
[393351333,1762505447814,-1000.0,0.00036098,2]
[393351334,1762505447826,-650.68,0.000361,14]
[393351335,1762505447836,-4232.0,0.00036108,120]
[393351336,1762505447848,-158.64,0.00036161,60]
[393351337,1762505447859,-300.0,0.00036189,2]
[393351338,1762505447870,-300.0,0.000362,2]
[393351339,1762505447882,-347.89316635,0.000362,2]
[393351340,1762505447892,-199.0,0.00036219,12]
[393351341,1762505447903,-313.0,0.00036247,30]
[393351342,1762505447914,-158.64,0.00036261,60]
[393351343,1762505447925,-152.0,0.00036312,13]
[393351344,1762505447936,-223.18267872,0.00036331,16]
[393351345,1762505447947,-269.0,0.00036339,7]
[393351346,1762505447957,-300.0,0.00036347,2]
[393351347,1762505447968,-2200.0,0.00036353,7]
[393351348,1762505447979,-158.64,0.00036361,60]
[393351349,1762505447995,-247.58792515,0.00036362,15]
[393351350,1762505448006,-1154.18732942,0.00036385,2]
[393351351,1762505448016,-20000.0,0.000364,30]
[393351352,1762505448027,-19266.7216601,0.000364,60]
[393351353,1762505448038,-1000.0,0.00036411,5]
[393351354,1762505448049,-300.0,0.00036423,2]
[393351355,1762505448060,-158.64,0.00036461,60]
[393351356,1762505448071,-1158.0,0.00036473,2]
[393351357,1762505448081,-249.62,0.000365,30]
[393351358,1762505448092,-2288.0,0.00036555,2]
[393351359,1762505448103,-158.64,0.00036561,60]
[393351360,1762505448113,-168.0,0.00036565,2]
[393351361,1762505448124,-300.0,0.00036573,2]
[393351362,1762505448135,-161.04765581,0.00036576,10]
[393351363,1762505448146,-353.39331684,0.00036603,2]
[393351364,1762505448157,-300.0,0.00036615,2]
[393351365,1762505448168,-300.0,0.00036641,2]
[393351366,1762505448179,-176.94,0.00036649,2]
[393351367,1762505448191,-1219.53,0.00036649,2]
[393351368,1762505448202,-169.08,0.00036649,2]
[393351369,1762505448212,-169.08,0.00036649,2]
[393351370,1762505448222,-169.08,0.00036649,2]
[393351371,1762505448233,-169.08,0.00036649,2]
[393351372,1762505448244,-169.08,0.00036649,2]
[393351373,1762505448255,-338.16,0.00036649,2]
[393351374,1762505448266,-169.08,0.00036649,2]
[393351375,1762505448277,-162.21113264,0.00036659,2]
[393351376,1762505448288,-158.64,0.00036661,60]
[393351377,1762505448298,-506.19973695,0.00036667,2]
[393351378,1762505448309,-300.0,0.00036681,2]
[393351379,1762505448319,-263.0,0.000367,13]
[393351380,1762505448330,-2000.0,0.000367,2]
[393351381,1762505448341,-650.68,0.000367,14]
[393351382,1762505448352,-200.51355,0.000367,13]
[393351383,1762505448363,-1004.0,0.000367,7]
[393351384,1762505448375,-7864.0,0.00036729,3]
[393351385,1762505448385,-300.0,0.00036739,2]
[393351386,1762505448396,-158.64,0.00036761,60]
[393351387,1762505448407,-199.0,0.00036767,13]
[393351388,1762505448417,-1586.95286101,0.000368,2]
[393351389,1762505448430,-247.58792515,0.00036816,15]
[393351390,1762505448444,-466.89261371,0.00036822,5]
[393351391,1762505448455,-300.0,0.00036834,2]
[393351392,1762505448465,-161.21430741,0.00036849,30]
[393351393,1762505448476,-158.64,0.00036861,60]
[393351394,1762505448487,-205.2433,0.00036888,7]
[393351395,1762505448498,-150.0,0.00036899,2]
[393351396,1762505448509,-800.0,0.00036901,7]
[393351397,1762505448518,-2000.0,0.00036901,7]
[393351398,1762505448528,-13917.60481136,0.0003691,2]
[393351399,1762505448537,-158.64,0.00036961,60]
[393351400,1762505448546,-300.0,0.00036968,2]
[393351401,1762505448555,-69680.56807856,0.00036999,2]
[393351402,1762505448564,-168.0,0.00037,2]
[393351403,1762505448573,-187.36797991,0.00037,2]
[393351404,1762505448583,-536.36407264,0.00037,30]
[393351405,1762505448592,-8786.11279803,0.00037,2]
[393351406,1762505448601,-163.14306166,0.00037,2]
[393351407,1762505448610,-2453.579805,0.00037,27]
[393351408,1762505448620,-300.0,0.00037009,2]
[393351409,1762505448629,-300.0,0.00037017,2]
[393351410,1762505448638,-150.0,0.00037018,120]
[393351411,1762505448647,-161.21430741,0.00037041,30]
[393351412,1762505448656,-152.0,0.00037043,14]
[393351413,1762505448665,-158.64073245,0.00037061,60]
[393351414,1762505448674,-300.0,0.00037092,2]
[393351415,1762505448684,-249.62,0.000371,30]
[393351416,1762505448693,-300.0,0.000371,2]
[393351417,1762505448702,-269.0,0.00037134,2]
[393351418,1762505448711,-1000.0,0.00037153,7]
[393351419,1762505448720,-300.0,0.00037171,2]
[393351420,1762505448950,-2200.0,0.00037175,7]
[393351421,1762505448962,-300.0,0.00037175,2]
[393351422,1762505448971,-300.0,0.00037196,2]
[393351423,1762505448981,-5731.91380952,0.000372,120]
[393351424,1762505448993,-5731.9138095,0.000372,120]
[393351425,1762505449002,-5731.9138095,0.000372,120]
[393351426,1762505449011,-5731.9138095,0.000372,120]
[393351427,1762505449020,-300.0,0.00037201,2]
[393351428,1762505449029,-300.0,0.00037201,2]
[393351429,1762505449038,-300.0,0.00037204,2]
[393351430,1762505449047,-1000.0,0.00037216,7]
[393351431,1762505449056,-300.0,0.00037223,2]
[393351432,1762505449067,-300.0,0.00037237,2]
[393351433,1762505449076,-300.0,0.00037252,2]
[393351434,1762505449085,-1000.0,0.0003726,7]
[393351435,1762505449093,-1000.0,0.0003726,7]
[393351436,1762505449102,-161.21430741,0.0003726,30]
[393351437,1762505449111,-1222.87,0.00037264,2]
[393351438,1762505449120,-300.0,0.00037267,2]
[393351439,1762505449129,-247.58792515,0.0003727,15]
[393351440,1762505449139,-1000.0,0.0003727,7]
[393351441,1762505449147,-194.7,0.00037272,120]
[393351442,1762505449157,-300.0,0.00037273,2]
[393351443,1762505449166,-1000.0,0.00037277,7]
[393351444,1762505449175,-353.39331684,0.00037279,2]
[393351445,1762505449184,-1000.0,0.00037288,7]
[393351446,1762505449193,-1000.0,0.00037288,7]
[393351447,1762505449202,-300.0,0.00037297,2]
[393351448,1762505449211,-544.57170129,0.00037297,7]
[393351449,1762505449220,-300.0,0.00037299,2]
[393351450,1762505449230,-650.68,0.000373,14]
[393351451,1762505449239,-163.49583489,0.00037301,10]
[393351452,1762505449248,-1000.0,0.00037301,7]
[393351453,1762505449257,-150.0,0.00037314,2]
[393351454,1762505449267,-300.0,0.00037315,2]
[393351455,1762505449275,-199.0,0.00037315,14]
[393351456,1762505449288,-300.0,0.00037326,2]
[393351457,1762505449298,-506.19973695,0.00037327,2]
[393351458,1762505449307,-1000.0,0.0003733,7]
[393351459,1762505449316,-300.0,0.00037368,2]
[393351460,1762505449325,-269.0,0.00037375,7]
[393351461,1762505449335,-300.0,0.00037376,2]
[393351462,1762505449345,-300.0,0.00037379,2]
[393351463,1762505449355,-154788.95634805,0.0003739,14]
[393351464,1762505449364,-300.0,0.0003739,2]
[393351465,1762505449373,-1000.0,0.00037396,7]
[393351466,1762505449382,-2000.0,0.000374,120]
[393351467,1762505449391,-2052.0,0.000374,120]
[393351468,1762505449399,-3881.33,0.000374,14]
[393351469,1762505449408,-20000.0,0.000374,30]
[393351470,1762505449417,-300.0,0.00037411,2]
[393351471,1762505449427,-5800.0,0.00037425,2]
[393351472,1762505449436,-5800.0,0.00037434,2]
[393351473,1762505449445,-1000.0,0.00037435,7]
[393351474,1762505449455,-5800.0,0.00037439,2]
[393351475,1762505449465,-3603.10713253,0.00037439,2]
[393351476,1762505449474,-1000.0,0.00037439,7]
[393351477,1762505449484,-161.21430741,0.00037452,30]
[393351478,1762505449494,-1000.0,0.00037454,7]
[393351479,1762505449504,-300.0,0.00037456,2]
[393351480,1762505449513,-269.0,0.00037467,2]
[393351481,1762505449522,-169.08,0.00037471,2]
[393351482,1762505449531,-300.0,0.00037476,2]
[393351483,1762505449540,-1000.0,0.00037482,7]
[393351484,1762505449550,-300.0,0.00037494,2]
[393351485,1762505449559,-271.0,0.00037497,2]
[393351486,1762505449568,-300.0,0.000375,2]
[393351487,1762505449578,-1500.0,0.000375,27]
[393351488,1762505449587,-1154.18732942,0.00037508,2]
[393351489,1762505449596,-300.0,0.00037515,2]
[393351490,1762505449606,-999.0,0.00037515,120]
[393351491,1762505449615,-1000.0,0.0003752,7]
[393351492,1762505449623,-1000.0,0.00037521,7]
[393351493,1762505449632,-1000.0,0.00037525,7]
[393351494,1762505449641,-2500.0,0.00037547,2]
[393351495,1762505449651,-271.0,0.00037563,2]
[393351496,1762505449660,-300.0,0.00037572,85]
[393351497,1762505449668,-1000.0,0.00037589,7]
[393351498,1762505449677,-4268.87150319,0.0003759,2]
[393351499,1762505449687,-782.15292764,0.00037591,2]
[393351500,1762505449696,-150.0,0.00037595,120]
[393351501,1762505449705,-300.0,0.00037596,2]
[393351502,1762505449714,-1000.0,0.000376,7]
[393351503,1762505449723,-300.0,0.00037602,2]
[393351504,1762505449733,-300.0,0.00037607,2]
[393351505,1762505449742,-300.0,0.0003761,2]
[393351506,1762505449751,-300.0,0.00037617,2]
[393351507,1762505449760,-300.0,0.00037628,2]
[393351508,1762505449769,-1000.0,0.00037653,7]
[393351509,1762505449778,-300.0,0.00037654,2]
[393351510,1762505449787,-1000.0,0.0003766,7]
[393351511,1762505449796,-1000.0,0.00037665,7]
[393351512,1762505449805,-1000.0,0.00037668,7]
[393351513,1762505449814,-161.21430741,0.00037671,30]
[393351514,1762505449823,-300.0,0.00037674,2]
[393351515,1762505449832,-300.0,0.00037685,2]